[Event "Icelandic-ch 2021"]
[Site "Kopavogur"]
[Date "2021.04.25"]
[Round "4.3"]
[White "Thorfinnsson, Bragi"]
[Black "Stefansson, Hannes"]
[Result "1/2-1/2"]
[ECO "D11"]
[WhiteElo "2432"]
[BlackElo "2532"]
[Annotator "ChessBase"]
[PlyCount "123"]
[EventDate "2021.04.22"]
[EventType "tourn"]
[EventCountry "ISL"]
[SourceTitle "playchess.com"]
[Source "ChessBase"]
[SourceQuality "1"]
[TimeControl "40/5400+30:1800+30"]

1. d4 {[%emt 0:01:41]} c6 {[%emt 0:00:25]} 2. Nf3 {[%emt 0:00:30]} Nf6 {[%emt 0:00:30]} 3. c4 {[%emt 0:00:30]} d5 {[%emt 0:00:30]} 4. Qc2 {[%emt 0:00:30]} dxc4 {[%emt 0:00:30]} 5. e4 {[%emt 0:00:30]} b5 {[%emt 0:00:30]} 6. b3 {[%emt 0:00:30]} cxb3 {[%emt 0:00:30]} 7. axb3 {[%emt 0:00:30]} e6 {[%emt 0:00:30]} 8. Bd3 {[%emt 0:00:30]} Qb6 {[%emt 0:00:30]} 9. O-O {[%emt 0:00:30]} Na6 {[%emt 0:00:30]} 10. Bg5 {[%emt 0:00:30]} Nb4 {[%emt 0:00:30]} 11. Qe2 {[%emt 0:00:30]} Bb7 {[%emt 0:00:30]} 12. Nc3 {[%emt 0:00:30]} h6 {[%emt 0:00:30]} 13. Be3 {[%emt 0:00:30]} Nxd3 {[%emt 0:00:30]} 14. Qxd3 {[%emt 0:00:30]} a6 {[%emt 0:00:30]} 15. Rfc1 {[%emt 0:00:30]} Qd8 {[%emt 0:00:30]} 16. e5 {[%emt 0:00:30]} Nd7 {[%emt 0:00:30]} 17. Qe4 {[%emt 0:00:30]} Qe7 {[%emt 0:00:30]} 18. h4 {[%emt 0:00:30]} Nb6 {[%emt 0:00:30]} 19. Qf4 {[%emt 0:00:30]} Nd5 {[%emt 0:00:30]} 20. Nxd5 {[%emt 0:00:30]} exd5 {[%emt 0:00:30]} 21. Bd2 {[%emt 1:02:34]} Qe6 {[%emt 1:05:17]} 22. Qg3 {[%emt 0:03:08]} Be7 {[%emt 0:08:13]} 23. Ne1 {[%emt 0:00:39]} Qf5 {[%emt 0:03:58]} 24. Nd3 {[%emt 0:02:35]} Bxh4 {[%emt 0:01:50]} 25. Qxh4 {[%emt 0:02:00]} Qxd3 {[%emt 0:00:08]} 26. Bb4 {[%emt 0:00:18]} g5 {[%emt 0:00:22]} 27. Qh5 {[%emt 0:01:48]} Qg6 {[%emt 0:10:16]} 28. Qxg6 {[%emt 0:00:30]} fxg6 {[%emt 0:00:30]} 29. Rc3 {[%emt 0:00:30]} g4 {[%emt 0:00:30]} 30. f3 {[%emt 0:00:30]} a5 {[%emt 0:00:30]} 31. Bd6 {[%emt 0:00:30]} b4 {[%emt 0:00:30]} 32. Re3 {[%emt 0:00:30]} Bc8 {[%emt 0:00:30]} 33. e6 {[%emt 0:00:30]} gxf3 {[%emt 0:00:30]} 34. Rf1 {[%emt 0:07:44]} a4 {[%emt 0:02:42]} 35. bxa4 {[%emt 0:00:30]} b3 {[%emt 0:00:30]} 36. Rxb3 {[%emt 0:01:54]} Bxe6 {[%emt 0:00:00]} 37. Rb7 {[%emt 0:00:22]} Kd8 {[%emt 0:00:54]} 38. Rxf3 {[%emt 0:02:08]} Re8 {[%emt 0:00:12]} 39. Rg7 {[%emt 0:02:35]} Kc8 {[%emt 0:03:28]} 40. Rc7+ {[%emt 0:00:00]} Kd8 {[%emt 0:00:00]} 41. Rb3 {[%emt 0:04:50]} Bd7 {[%emt 0:02:51]} 42. a5 {[%emt 0:03:58]} Re6 {[%emt 0:01:11]} 43. Bg3 {[%emt 0:00:49]} c5 {[%emt 0:07:40]} 44. Rxc5 {[%emt 0:01:37]} Rc6 {[%emt 0:02:04]} 45. Rxd5 {[%emt 0:01:27]} Kc8 {[%emt 0:00:19]} 46. Rb2 {[%emt 0:07:33]} Rc3 {[%emt 0:03:18]} 47. Kh2 {[%emt 0:03:31]} Bc6 {[%emt 0:01:16]} 48. Re5 {[%emt 0:01:48]} Rc4 {[%emt 0:02:32]} 49. d5 {[%emt 0:01:33]} Bd7 {[%emt 0:00:42]} 50. Re7 {[%emt 0:02:23]} Kd8 {[%emt 0:00:17]} 51. Rh7 {[%emt 0:03:15]} Rxa5 {[%emt 0:00:36]} 52. Rb8+ {[%emt 0:01:32]} Bc8 {[%emt 0:00:06]} 53. Rh8+ {[%emt 0:03:00]} Kd7 {[%emt 0:00:05]} 54. Rh7+ {[%emt 0:02:05]} Kd8 {[%emt 0:00:02]} 55. Rh8+ {[%emt 0:02:00]} Kd7 {[%emt 0:00:07]} 56. Rb6 {[%emt 0:00:36]} Rxd5 {[%emt 0:00:52]} 57. Rh7+ {[%emt 0:00:51]} Ke8 {[%emt 0:01:32]} 58. Rxg6 {[%emt 0:00:11]} Rh5+ {[%emt 0:00:26]} 59. Kg1 {[%emt 0:00:08]} Rg5 {[%emt 0:02:00]} 60. Rhxh6 {[%emt 0:01:46]} Rxg6 {[%emt 0:00:10]} 61. Rxg6 {[%emt 0:00:04]} Rg4 {[%emt 0:00:18]} 62. Rxg4 {[%emt 0:00:36]} 1/2-1/2

[Event "Icelandic-ch 2021"]
[Site "Kopavogur"]
[Date "2021.04.25"]
[Round "4.4"]
[White "Stefansson, Vignir Vatnar"]
[Black "Bjornsson, Sigurbjorn"]
[Result "1-0"]
[ECO "B07"]
[WhiteElo "2327"]
[BlackElo "2327"]
[Annotator "NA"]
[PlyCount "63"]
[EventDate "2021.04.22"]
[EventType "tourn"]
[EventCountry "ISL"]
[SourceTitle "playchess.com"]
[Source "ChessBase"]
[SourceQuality "1"]
[TimeControl "40/5400+30:1800+30"]

1. d4 {[%emt 0:01:44]} Nf6 {[%emt 0:01:26]} 2. g3 {[%emt 0:00:00]} g6 {[%emt 0:00:28]} 3. Bg2 {[%emt 0:00:00]} Bg7 {[%emt 0:00:07]} 4. e4 {[%emt 0:00:00]} d6 {[%emt 0:00:41]} 5. Ne2 {[%emt 0:00:00]} O-O {[%emt 0:00:08]} 6. O-O {[%emt 0:00:00]} e5 {[%emt 0:00:59]} 7. Nbc3 {[%emt 0:00:00]} exd4 {[%emt 0:04:21]} 8. Nxd4 {[%emt 0:00:00]} Re8 {[%emt 0:00:37]} 9. h3 {[%emt 0:01:12]} Bd7 {[%emt 0:01:40]} 10. Be3 {[%emt 0:07:52]} Nc6 {[%emt 0:00:38]} 11. Nb3 {[%emt 0:05:43]} Ne5 {[%emt 0:02:14]} 12. Nd2 {[%emt 0:03:10]} Bc6 {[%emt 0:05:31]} 13. f4 {[%emt 0:03:00]} Ned7 {[%emt 0:00:41]} 14. Re1 {[%emt 0:08:03]} Re7 {[%emt 0:04:31]} 15. Bf2 {[%emt 0:01:42]} Qf8 {[%emt 0:02:26]} 16. Nb3 {[%emt 0:02:24]} Rae8 {[%emt 0:11:38]} 17. Qd3 {[%emt 0:00:16]} Nh5 {[%emt 0:10:13]} 18. Na5 {[%emt 0:03:20]} Nb6 {[%emt 0:12:11]} 19. Nxc6 {[%emt 0:04:46]} bxc6 {[%emt 0:00:02]} 20. Rad1 {[%emt 0:01:42]} Rd7 {[%emt 0:04:32]} 21. Bf3 {[%emt 0:04:59]} Nf6 {[%emt 0:00:47]} 22. Qa6 {[%emt 0:03:37]} Ra8 {[%emt 0:02:25]} 23. a4 {[%emt 0:03:32]} Qc8 {[%emt 0:05:45]} 24. Be2 {[%emt 0:01:27]} Re7 {[%emt 0:04:49]} 25. a5 {[%emt 0:06:17]} Qxa6 {[%emt 0:11:08]} 26. Bxa6 {[%emt 0:00:06]} Nbd7 {[%emt 0:00:03]} 27. Bb7 {[%emt 0:01:28]} Rb8 {[%emt 0:00:05]} 28. a6 {[%emt 0:02:23]} Nb6 {[%emt 0:04:23]} 29. Bxc6 {[%emt 0:00:15]} Nc4 {[%emt 0:00:53]} 30. Bxa7 {[%emt 0:00:36]} Rxb2 {[%emt 0:00:21]} 31. Bd4 {[%emt 0:00:08]} Nd7 {[%emt 0:00:39]} 32. Nd5 {[%emt 0:00:11]} 1-0

[Event "Icelandic-ch 2021"]
[Site "Kopavogur"]
[Date "2021.04.25"]
[Round "4.5"]
[White "Mai, Alexander Oliver"]
[Black "Gretarsson, Helgi Ass"]
[Result "1/2-1/2"]
[ECO "B09"]
[WhiteElo "2025"]
[BlackElo "2437"]
[Annotator "NA"]
[PlyCount "77"]
[EventDate "2021.04.22"]
[EventType "tourn"]
[EventCountry "ISL"]
[SourceTitle "playchess.com"]
[Source "ChessBase"]
[SourceQuality "1"]
[TimeControl "40/5400+30:1800+30"]

1. d4 {[%emt 0:00:00]} g6 {[%emt 0:00:00]} 2. e4 {[%emt 0:00:00]} Bg7 {[%emt 0:00:00]} 3. Nc3 {[%emt 0:00:01]} d6 {[%emt 0:00:00]} 4. f4 {[%emt 0:00:11]} Nf6 {[%emt 0:00:22]} 5. Nf3 {[%emt 0:00:12]} O-O {[%emt 0:00:11]} 6. e5 {[%emt 0:00:40]} Nfd7 {[%emt 0:00:50]} 7. h4 {[%emt 0:00:58]} c5 {[%emt 0:00:08]} 8. h5 {[%emt 0:00:48]} cxd4 {[%emt 0:02:04]} 9. hxg6 $15 {[%emt 0:01:32]} (9. Qxd4 $14 dxe5 10. Qf2) 9... dxc3 {[%emt 0:09:30]} 10. gxf7+ {[%emt 0:01:23]} Rxf7 {[%emt 0:00:08]} 11. Bc4 {[%emt 0:02:31]} e6 {[%emt 0:01:29]} 12. Ng5 {[%emt 0:12:08]} Nxe5 {[%emt 0:52:10]} 13. Qh5 {[%emt 0:53:01]} h6 {[%emt 0:00:47]} 14. fxe5 {[%emt 0:00:59]} hxg5 {[%emt 0:03:05]} 15. Qh7+ {[%emt 0:00:25]} Kf8 {[%emt 0:00:01]} 16. Qh8+ {[%emt 0:00:15]} Bxh8 {[%emt 0:00:08]} 17. Rxh8+ {[%emt 0:00:01]} Kg7 {[%emt 0:00:09]} 18. Rxd8 {[%emt 0:00:03]} Nc6 {[%emt 0:00:07]} 19. Rxd6 {[%emt 0:00:48]} Nxe5 {[%emt 0:00:17]} 20. Be2 {[%emt 0:00:20]} Rc7 {[%emt 0:02:21]} 21. bxc3 {[%emt 0:01:43]} Bd7 {[%emt 0:10:24]} 22. Bb2 {[%emt 0:05:20]} Nf7 {[%emt 0:00:51]} 23. c4+ {[%emt 0:03:08]} Kg8 {[%emt 0:00:18]} 24. Rd2 {[%emt 0:01:17]} Bc6 {[%emt 0:03:32]} 25. O-O-O {[%emt 0:02:43]} Re8 {[%emt 0:06:44]} 26. Bh5 {[%emt 0:03:23]} e5 {[%emt 0:01:41]} 27. Rf2 {[%emt 0:00:55]} Re6 {[%emt 0:00:35]} 28. Rdf1 {[%emt 0:02:24]} Be8 {[%emt 0:04:51]} 29. Rf5 {[%emt 0:01:51]} Kg7 {[%emt 0:00:13]} 30. Bxf7 {[%emt 0:01:01]} Rxf7 {[%emt 0:00:03]} 31. Rxg5+ {[%emt 0:00:48]} Kh6 {[%emt 0:00:09]} 32. Rxf7 {[%emt 0:00:35]} Bxf7 {[%emt 0:01:27]} 33. Rxe5 {[%emt 0:00:44]} Rxe5 {[%emt 0:00:04]} 34. Bxe5 {[%emt 0:00:04]} Bxc4 {[%emt 0:00:04]} 35. a4 {[%emt 0:01:04]} Bd5 {[%emt 0:00:08]} 36. g3 {[%emt 0:00:32]} Kg5 {[%emt 0:00:10]} 37. Kd2 {[%emt 0:00:13]} Kg4 {[%emt 0:00:05]} 38. Bb8 {[%emt 0:00:38]} a6 {[%emt 0:00:04]} 39. Ke3 {[%emt 0:00:26]} 1/2-1/2

[Event "Icelandic-ch 2021"]
[Site "Kopavogur"]
[Date "2021.04.26"]
[Round "5.1"]
[White "Gretarsson, Helgi Ass"]
[Black "Hjartarson, Johann"]
[Result "1/2-1/2"]
[ECO "E12"]
[WhiteElo "2437"]
[BlackElo "2523"]
[Annotator "ChessBase"]
[PlyCount "136"]
[EventDate "2021.04.22"]
[EventType "tourn"]
[EventCountry "ISL"]
[SourceTitle "playchess.com"]
[Source "ChessBase"]
[SourceQuality "1"]
[TimeControl "40/5400+30:1800+30"]

1. d4 {[%emt 0:00:00]} Nf6 {[%emt 0:00:00]} 2. c4 {[%emt 0:00:00]} e6 {[%emt 0:00:13]} 3. Nf3 {[%emt 0:00:00]} b6 {[%emt 0:00:19]} 4. Bf4 {[%emt 0:00:35]} Bb4+ {[%emt 0:01:10]} 5. Nfd2 {[%emt 0:00:49]} Nh5 {[%emt 0:00:19]} 6. a3 {[%emt 0:03:12]} Be7 {[%emt 0:00:33]} 7. Bg3 {[%emt 0:12:45]} Nxg3 {[%emt 0:03:02]} 8. hxg3 {[%emt 0:00:01]} c5 {[%emt 0:00:13]} 9. d5 {[%emt 0:00:18]} exd5 {[%emt 0:02:31]} 10. cxd5 {[%emt 0:00:08]} d6 {[%emt 0:01:11]} 11. e3 {[%emt 0:03:44]} a6 {[%emt 0:02:15]} 12. a4 {[%emt 0:08:10]} Nd7 {[%emt 0:01:22]} 13. Nc3 {[%emt 0:00:09]} g6 {[%emt 0:08:38]} 14. g4 {[%emt 0:00:47]} O-O {[%emt 0:02:43]} 15. Be2 {[%emt 0:08:12]} Re8 {[%emt 0:02:43]} 16. g3 {[%emt 0:00:58]} Rb8 {[%emt 0:07:26]} 17. Kf1 {[%emt 0:35:24]} Bf8 {[%emt 0:03:08]} 18. Kg2 {[%emt 0:05:35]} Qe7 {[%emt 0:02:11]} 19. Nc4 {[%emt 0:02:03]} Bg7 {[%emt 0:03:33]} 20. Na3 {[%emt 0:03:30]} Nf6 {[%emt 0:06:08]} 21. Bf3 {[%emt 0:00:42]} h6 {[%emt 0:04:10]} 22. Nc4 {[%emt 0:00:44]} Bd7 {[%emt 0:02:16]} 23. a5 {[%emt 0:01:16]} b5 {[%emt 0:01:52]} 24. Nb6 {[%emt 0:00:03]} b4 {[%emt 0:06:56]} 25. Nca4 {[%emt 0:01:10]} Bb5 {[%emt 0:01:29]} 26. Ra2 {[%emt 0:03:47]} Ne4 {[%emt 0:04:41]} 27. b3 {[%emt 0:01:11]} Ng5 {[%emt 0:08:16]} 28. Nb2 {[%emt 0:00:42]} Bxb2 {[%emt 0:03:35]} 29. Rxb2 {[%emt 0:00:01]} Qf6 {[%emt 0:00:13]} 30. Rc2 {[%emt 0:03:31]} Qxf3+ {[%emt 0:05:29]} 31. Qxf3 {[%emt 0:00:04]} Nxf3 {[%emt 0:00:07]} 32. Kxf3 {[%emt 0:00:01]} Bd3 {[%emt 0:00:08]} 33. Rcc1 {[%emt 0:03:13]} Be4+ {[%emt 0:00:10]} 34. Ke2 {[%emt 0:00:00]} Bxh1 {[%emt 0:00:11]} 35. Rxh1 {[%emt 0:00:01]} Kg7 {[%emt 0:03:05]} 36. Nc4 {[%emt 0:00:09]} Rbd8 {[%emt 0:00:12]} 37. f4 {[%emt 0:00:24]} Rh8 {[%emt 0:05:43]} 38. Nd2 {[%emt 0:04:16]} f5 {[%emt 0:02:18]} 39. gxf5 {[%emt 0:00:40]} gxf5 {[%emt 0:00:04]} 40. Kf3 {[%emt 0:00:00]} h5 {[%emt 0:00:00]} 41. e4 {[%emt 0:05:38]} fxe4+ {[%emt 0:05:54]} 42. Nxe4 {[%emt 0:00:06]} Kg6 {[%emt 0:02:44]} 43. Ke3 {[%emt 0:12:29]} Rhf8 {[%emt 0:05:43]} 44. Kd3 {[%emt 0:02:08]} Rde8 {[%emt 0:02:04]} 45. Nxd6 {[%emt 0:09:31]} Rd8 {[%emt 0:00:11]} 46. Nc4 {[%emt 0:00:02]} Rxd5+ {[%emt 0:00:15]} 47. Ke4 {[%emt 0:00:09]} Rd4+ {[%emt 0:00:18]} 48. Ke3 {[%emt 0:00:01]} Rxc4 {[%emt 0:06:50]} 49. bxc4 {[%emt 0:00:01]} Rd8 {[%emt 0:02:53]} 50. Ke4 {[%emt 0:02:31]} Rd4+ {[%emt 0:00:54]} 51. Ke5 {[%emt 0:00:02]} Rxc4 {[%emt 0:00:30]} 52. f5+ {[%emt 0:00:07]} Kf7 {[%emt 0:01:55]} 53. Kd5 {[%emt 0:04:41]} Rc2 {[%emt 0:01:16]} 54. Rxh5 {[%emt 0:00:20]} b3 {[%emt 0:00:27]} 55. Rh7+ {[%emt 0:00:19]} Kf6 {[%emt 0:00:39]} 56. Rh6+ {[%emt 0:00:07]} Kxf5 {[%emt 0:01:03]} 57. Rxa6 {[%emt 0:00:04]} c4 {[%emt 0:02:23]} 58. Rb6 {[%emt 0:00:29]} b2 {[%emt 0:02:05]} 59. a6 {[%emt 0:00:48]} c3 {[%emt 0:01:15]} 60. Kc4 {[%emt 0:01:00]} Rc1 {[%emt 0:00:35]} 61. a7 {[%emt 0:00:03]} Ra1 {[%emt 0:00:12]} 62. Kxc3 {[%emt 0:00:06]} Rxa7 {[%emt 0:00:11]} 63. Kxb2 {[%emt 0:00:27]} Rg7 {[%emt 0:00:15]} 64. Rb3 {[%emt 0:00:08]} Kg4 {[%emt 0:00:12]} 65. Kc2 {[%emt 0:00:03]} Rf7 {[%emt 0:00:10]} 66. Kd2 {[%emt 0:00:03]} Rf3 {[%emt 0:00:06]} 67. Rxf3 {[%emt 0:00:03]} Kxf3 {[%emt 0:00:05]} 68. Kd3 {[%emt 0:00:01]} Kxg3 {[%emt 0:00:08]} 1/2-1/2

[Event "Icelandic-ch 2021"]
[Site "Kopavogur"]
[Date "2021.04.26"]
[Round "5.2"]
[White "Bjornsson, Sigurbjorn"]
[Black "Mai, Alexander Oliver"]
[Result "1-0"]
[ECO "C42"]
[WhiteElo "2327"]
[BlackElo "2025"]
[Annotator "NA"]
[PlyCount "99"]
[EventDate "2021.04.22"]
[EventType "tourn"]
[EventCountry "ISL"]
[SourceTitle "playchess.com"]
[Source "ChessBase"]
[SourceQuality "1"]
[TimeControl "40/5400+30:1800+30"]

1. e4 {[%emt 0:00:00]} e5 {[%emt 0:00:00]} 2. Nf3 {[%emt 0:00:00]} Nf6 {[%emt 0:00:00]} 3. Nxe5 {[%emt 0:00:05]} Nxe4 {[%emt 0:00:01]} 4. Qe2 {[%emt 0:00:22]} Qe7 {[%emt 0:00:09]} 5. Qxe4 {[%emt 0:00:44]} d6 {[%emt 0:00:17]} 6. d4 {[%emt 0:00:41]} dxe5 {[%emt 0:00:10]} 7. dxe5 {[%emt 0:01:37]} Nc6 {[%emt 0:00:16]} 8. Bf4 {[%emt 0:03:06]} g5 {[%emt 0:00:17]} 9. Bb5 {[%emt 0:20:09]} Bd7 {[%emt 0:16:20]} 10. e6 {[%emt 0:02:07]} fxe6 {[%emt 0:10:56]} 11. Bxc7 {[%emt 0:05:07]} Bg7 {[%emt 0:13:40]} 12. Nc3 {[%emt 0:02:52]} Bxc3+ {[%emt 0:09:14]} 13. bxc3 {[%emt 0:00:17]} Qc5 {[%emt 0:00:25]} 14. Qc4 {[%emt 0:04:31]} Qxc4 {[%emt 0:01:57]} 15. Bxc4 {[%emt 0:00:06]} Rc8 {[%emt 0:01:21]} 16. Bd6 {[%emt 0:01:45]} Na5 {[%emt 0:14:15]} 17. Be2 {[%emt 0:02:47]} Nc4 {[%emt 0:02:02]} 18. Bh5+ {[%emt 0:02:34]} Kd8 {[%emt 0:00:06]} 19. Bg3 {[%emt 0:01:58]} Rc5 {[%emt 0:04:40]} 20. O-O-O {[%emt 0:03:33]} Kc8 {[%emt 0:00:45]} 21. Rhe1 {[%emt 0:03:25]} Rf8 {[%emt 0:04:40]} 22. Bg4 {[%emt 0:02:33]} Rf6 {[%emt 0:01:52]} 23. Rd4 {[%emt 0:04:31]} b5 {[%emt 0:01:13]} 24. Bf3 {[%emt 0:04:32]} Bc6 {[%emt 0:05:19]} 25. Bxc6 {[%emt 0:04:19]} Rxc6 {[%emt 0:00:02]} 26. Red1 {[%emt 0:00:58]} Nb6 {[%emt 0:04:24]} 27. Rd6 {[%emt 0:04:41]} Rxd6 {[%emt 0:00:39]} 28. Rxd6 {[%emt 0:00:02]} Nd5 {[%emt 0:02:05]} 29. c4 {[%emt 0:01:09]} bxc4 {[%emt 0:02:43]} 30. Rc6+ {[%emt 0:00:05]} Kb7 {[%emt 0:01:15]} 31. Rxc4 {[%emt 0:00:05]} Nf4 {[%emt 0:00:47]} 32. Kd2 {[%emt 0:01:58]} e5 {[%emt 0:01:16]} 33. Bxf4 {[%emt 0:00:45]} exf4 {[%emt 0:00:42]} 34. Ke2 {[%emt 0:00:45]} Kb6 {[%emt 0:01:59]} 35. a4 {[%emt 0:08:41]} h5 {[%emt 0:01:11]} 36. Kf3 {[%emt 0:00:14]} a6 {[%emt 0:00:30]} 37. Ke4 {[%emt 0:01:15]} Re6+ {[%emt 0:00:28]} 38. Kf3 {[%emt 0:00:48]} Rf6 {[%emt 0:00:21]} 39. h3 {[%emt 0:00:01]} Rd6 {[%emt 0:00:38]} 40. h4 {[%emt 0:00:00]} gxh4 {[%emt 0:00:00]} 41. Rxf4 {[%emt 0:02:31]} Rc6 {[%emt 0:05:20]} 42. Rxh4 {[%emt 0:00:12]} Rc3+ {[%emt 0:00:58]} 43. Kf4 {[%emt 0:02:30]} Rxc2 {[%emt 0:03:19]} 44. Kg3 {[%emt 0:00:12]} Rc5 {[%emt 0:06:44]} 45. Re4 {[%emt 0:00:38]} Rg5+ {[%emt 0:01:00]} 46. Kh3 {[%emt 0:00:08]} Kc5 {[%emt 0:01:23]} 47. f4 {[%emt 0:00:55]} Rg8 {[%emt 0:01:05]} 48. Re5+ {[%emt 0:00:50]} Kb4 {[%emt 0:00:12]} 49. a5 {[%emt 0:00:13]} Rf8 {[%emt 0:01:44]} 50. g3 {[%emt 0:00:14]} 1-0

[Event "Icelandic-ch 2021"]
[Site "Kopavogur"]
[Date "2021.04.26"]
[Round "5.3"]
[White "Stefansson, Hannes"]
[Black "Stefansson, Vignir Vatnar"]
[Result "1/2-1/2"]
[ECO "D42"]
[WhiteElo "2532"]
[BlackElo "2327"]
[Annotator "ChessBase"]
[PlyCount "91"]
[EventDate "2021.04.22"]
[EventType "tourn"]
[EventCountry "ISL"]
[SourceTitle "playchess.com"]
[Source "ChessBase"]
[SourceQuality "1"]
[TimeControl "40/5400+30:1800+30"]

1. d4 Nf6 2. c4 e6 3. Nc3 d5 4. cxd5 {[%emt 0:04:08]} Nxd5 5. Nf3 {[%emt 0:00:30]} c5 {[%emt 0:01:26]} 6. e3 {[%emt 0:00:30]} Nc6 {[%emt 0:00:30]} 7. Bd3 {[%emt 0:00:30]} Be7 {[%emt 0:00:30]} 8. O-O {[%emt 0:00:30]} O-O {[%emt 0:00:30]} 9. a3 {[%emt 0:00:30]} cxd4 {[%emt 0:00:30]} 10. exd4 {[%emt 0:00:30]} Bf6 {[%emt 0:00:30]} 11. Be4 {[%emt 0:00:30]} Nce7 {[%emt 0:00:30]} 12. Qd3 {[%emt 0:00:30]} h6 {[%emt 0:00:30]} 13. Ne5 {[%emt 0:00:30]} Nxc3 {[%emt 0:00:30]} 14. Qxc3 {[%emt 0:00:30]} Nf5 {[%emt 0:00:30]} 15. Be3 {[%emt 0:00:30]} Bd7 {[%emt 0:33:59]} 16. Bxb7 {[%emt 0:20:27]} Rb8 {[%emt 0:00:30]} 17. Be4 {[%emt 0:00:30]} Nxe3 {[%emt 0:00:30]} 18. fxe3 {[%emt 0:00:30]} Bxe5 {[%emt 0:00:30]} 19. dxe5 {[%emt 0:00:30]} Qb6 {[%emt 0:00:30]} 20. b4 {[%emt 0:00:30]} Rfc8 {[%emt 0:00:30]} 21. Qd2 {[%emt 0:00:30]} Bb5 {[%emt 0:00:30]} 22. Rfd1 {[%emt 0:00:30]} Rd8 {[%emt 0:00:30]} 23. Qf2 {[%emt 0:00:30]} Qc7 {[%emt 0:00:30]} 24. Qb2 {[%emt 0:00:30]} Qb6 {[%emt 0:00:30]} 25. Kf2 {[%emt 0:00:30]} Bc6 {[%emt 0:00:30]} 26. Bxc6 {[%emt 0:00:30]} Qxc6 {[%emt 0:00:30]} 27. Rac1 {[%emt 0:00:30]} Qa4 {[%emt 0:00:30]} 28. Ke1 {[%emt 0:00:30]} a5 {[%emt 0:00:30]} 29. Rxd8+ {[%emt 0:00:30]} Rxd8 {[%emt 0:00:30]} 30. b5 {[%emt 0:00:30]} Rd3 {[%emt 0:00:30]} 31. Qb1 {[%emt 0:47:57]} Rxe3+ {[%emt 0:36:45]} 32. Kf2 {[%emt 0:00:35]} Qf4+ {[%emt 0:00:03]} 33. Kg1 {[%emt 0:00:10]} g6 {[%emt 0:00:40]} 34. Qb2 {[%emt 0:09:29]} Qe4 {[%emt 0:02:00]} 35. Qf2 {[%emt 0:01:15]} Qxe5 {[%emt 0:00:19]} 36. Rf1 {[%emt 0:01:56]} f5 {[%emt 0:03:17]} 37. Qd2 {[%emt 0:00:45]} Qc5 {[%emt 0:02:55]} 38. Qd8+ {[%emt 0:01:09]} Kf7 {[%emt 0:00:34]} 39. Qd7+ {[%emt 0:00:06]} Qe7 {[%emt 0:02:17]} 40. Qc6 {[%emt 0:00:00]} Re5 {[%emt 0:00:00]} 41. Rc1 {[%emt 0:04:31]} Qxa3 {[%emt 0:06:37]} 42. Qc7+ {[%emt 0:00:51]} Kf6 {[%emt 0:00:05]} 43. Qd8+ {[%emt 0:00:09]} Qe7 {[%emt 0:00:08]} 44. Qh8+ {[%emt 0:00:27]} Qg7 {[%emt 0:00:04]} 45. Qd8+ {[%emt 0:00:08]} Qe7 {[%emt 0:00:03]} 46. Qh8+ {[%emt 0:00:07]} 1/2-1/2

[Event "Icelandic-ch 2021"]
[Site "Kopavogur"]
[Date "2021.04.26"]
[Round "5.4"]
[White "Gretarsson, Hjorvar Steinn"]
[Black "Thorfinnsson, Bragi"]
[Result "1-0"]
[ECO "D33"]
[WhiteElo "2588"]
[BlackElo "2432"]
[Annotator "ChessBase"]
[PlyCount "103"]
[EventDate "2021.04.22"]
[EventType "tourn"]
[EventCountry "ISL"]
[SourceTitle "playchess.com"]
[Source "ChessBase"]
[SourceQuality "1"]
[TimeControl "40/5400+30:1800+30"]

1. c4 {[%emt 0:01:16]} Nf6 {[%emt 0:02:06]} 2. Nc3 {[%emt 0:00:06]} c5 {[%emt 0:00:11]} 3. Nf3 {[%emt 0:00:07]} e6 {[%emt 0:01:32]} 4. g3 {[%emt 0:00:14]} d5 {[%emt 0:02:57]} 5. cxd5 {[%emt 0:00:20]} exd5 {[%emt 0:00:09]} 6. d4 {[%emt 0:00:05]} Nc6 {[%emt 0:00:08]} 7. Bg2 {[%emt 0:01:39]} cxd4 {[%emt 0:00:25]} 8. Nxd4 {[%emt 0:00:11]} Bc5 {[%emt 0:00:06]} 9. Nb3 {[%emt 0:02:50]} Bb6 {[%emt 0:02:18]} 10. O-O {[%emt 0:07:57]} d4 {[%emt 0:00:44]} 11. Na4 {[%emt 0:03:07]} O-O {[%emt 0:01:25]} 12. Nxb6 {[%emt 0:11:24]} axb6 {[%emt 0:01:19]} 13. Bxc6 {[%emt 0:06:49]} bxc6 {[%emt 0:00:08]} 14. Qxd4 {[%emt 0:01:27]} c5 {[%emt 0:11:55]} 15. Qxd8 {[%emt 0:12:22]} Rxd8 {[%emt 0:00:36]} 16. Bf4 {[%emt 0:03:34]} Nd5 {[%emt 0:04:14]} 17. Rad1 {[%emt 0:04:18]} Bh3 {[%emt 0:10:22]} 18. Rfe1 {[%emt 0:02:19]} Nxf4 {[%emt 0:02:15]} 19. gxf4 {[%emt 0:01:17]} g6 {[%emt 0:02:12]} 20. a3 {[%emt 0:05:40]} Bf5 {[%emt 0:03:02]} 21. Na1 {[%emt 0:18:13]} c4 {[%emt 0:14:36]} 22. f3 {[%emt 0:01:34]} Rxd1 {[%emt 0:02:50]} 23. Rxd1 {[%emt 0:01:15]} c3 {[%emt 0:00:07]} 24. bxc3 {[%emt 0:00:07]} Rxa3 {[%emt 0:00:05]} 25. Rc1 {[%emt 0:00:55]} b5 {[%emt 0:04:11]} 26. Kf2 {[%emt 0:00:26]} h5 {[%emt 0:04:25]} 27. Ke1 {[%emt 0:00:57]} Ra4 {[%emt 0:05:07]} 28. e4 {[%emt 0:04:51]} Be6 {[%emt 0:00:20]} 29. Nc2 {[%emt 0:00:30]} Ra2 {[%emt 0:02:10]} 30. h4 {[%emt 0:00:35]} Bb3 {[%emt 0:04:44]} 31. Nd4 {[%emt 0:00:37]} Bc4 {[%emt 0:03:59]} 32. Rc2 {[%emt 0:00:08]} Ra1+ {[%emt 0:00:05]} 33. Kf2 {[%emt 0:00:19]} Rh1 {[%emt 0:01:47]} 34. Kg3 {[%emt 0:01:54]} Rg1+ {[%emt 0:01:01]} 35. Kh2 {[%emt 0:00:16]} Rd1 {[%emt 0:00:19]} 36. Nc6 {[%emt 0:03:40]} f6 {[%emt 0:02:41]} 37. f5 {[%emt 0:00:41]} gxf5 {[%emt 0:02:10]} 38. Ne7+ {[%emt 0:00:06]} Kf7 {[%emt 0:00:44]} 39. Nxf5 {[%emt 0:00:05]} Bd3 {[%emt 0:00:30]} 40. Ra2 {[%emt 0:00:00]} Rc1 {[%emt 0:00:00]} 41. Ra7+ {[%emt 0:02:23]} Kf8 {[%emt 0:05:20]} 42. Ra3 {[%emt 0:02:09]} Rf1 {[%emt 0:16:15]} 43. Kg3 {[%emt 0:00:50]} Ke8 {[%emt 0:03:42]} 44. Kf4 {[%emt 0:01:30]} Be2 {[%emt 0:02:19]} 45. Ke3 {[%emt 0:03:46]} Bd1 {[%emt 0:01:08]} 46. Nd4 {[%emt 0:00:19]} Kf7 {[%emt 0:05:52]} 47. Ra7+ {[%emt 0:00:53]} Kg8 {[%emt 0:01:14]} 48. Ra5 {[%emt 0:00:46]} Rh1 {[%emt 0:00:39]} 49. Rxb5 {[%emt 0:04:31]} Rxh4 {[%emt 0:00:34]} 50. c4 {[%emt 0:00:32]} Ba4 {[%emt 0:01:24]} 51. Ra5 {[%emt 0:00:22]} Bd7 {[%emt 0:01:19]} 52. Ra7 {[%emt 0:00:09]} 1-0